bitfinex/quotes_SOLUSD_20251118
["timestamp","ask_amount","ask_price","bid_price","bid_amount"]
[1763438877631,8.96044191,134.08,134.06,0.1]
[1763438877829,8.96044191,134.07,134.06,0.1]
[1763438878434,0.43,134.1,134.06,0.1]
[1763438878633,8.96044191,134.08,134.06,0.1]
[1763438878848,8.96044191,134.08,134.06,0.81]
[1763438879227,18.12096,134.13,134.06,0.1]
[1763438879423,8.96044191,134.08,134.06,0.1]
[1763438879724,8.96044191,134.07,134.06,0.1]
[1763438880341,102.7,134.11,134.06,0.81]
[1763438880556,8.96044191,134.07,134.06,0.81]
[1763438880758,8.96044191,134.08,134.06,0.81]
[1763438880933,102.7,134.09,134.06,0.81]
[1763438881129,111.66044191,134.09,134.06,0.81]
[1763438881341,8.96044191,134.08,134.06,0.81]
[1763438881533,102.7,134.09,134.06,0.81]
[1763438882336,8.96044191,134.1,134.06,0.81]
[1763438882539,8.96044191,134.08,134.06,0.81]
[1763438882744,8.96044191,134.08,134.06,0.1]
[1763438883059,8.96044191,134.07,134.06,0.1]
[1763438883648,27.08140191,134.07,134.06,0.1]
[1763438884532,18.12096,134.07,134.06,0.1]
[1763438884733,27.51140191,134.07,134.06,0.1]
[1763438884933,0.43,134.07,134.06,0.1]
[1763438885172,27.51140191,134.07,134.06,0.1]
[1763438885485,18.55096,134.07,134.06,0.1]
[1763438885635,27.51140191,134.07,134.06,0.1]
[1763438887536,18.55096,134.07,134.06,0.1]
[1763438887743,8.96044191,134.1,134.06,0.1]
[1763438887958,8.96044191,134.07,134.06,0.1]
[1763438888233,18.12096,134.07,134.06,0.1]
[1763438888560,27.08140191,134.07,134.06,0.1]
[1763438888862,8.96044191,134.19,134.06,9.77044191]
[1763438889169,8.96044191,134.14,134.1,8.96044191]
[1763438889357,8.96044191,134.15,134.07,10.49882769]
[1763438889556,8.96044191,134.15,134.1,8.96044191]
[1763438890077,8.96044191,134.14,134.11,0.71]
[1763438890239,18.12096,134.16,134.11,0.71]
[1763438890577,8.96044191,134.14,134.11,0.71]
[1763438890936,8.96044191,134.15,134.11,9.67044191]
[1763438891134,8.96044191,134.15,134.11,0.71]
[1763438891446,8.96044191,134.15,134.12,0.71]
[1763438891638,9.78882769,134.21,134.12,0.71]
[1763438891639,8.96044191,134.16,134.12,0.71]
[1763438891834,9.78882769,134.21,134.12,0.71]
[1763438891835,8.96044191,134.18,134.13,8.96044191]
[1763438892061,0.43,134.23,134.14,8.96044191]
[1763438892367,10.16433972,134.27,134.16,8.96044191]
[1763438892368,8.96044191,134.21,134.16,8.96044191]
[1763438892537,0.43,134.26,134.12,0.71]
[1763438892538,8.96044191,134.19,134.14,8.96044191]
[1763438892740,8.96044191,134.17,134.13,0.66]
[1763438893044,8.96044191,134.18,134.13,9.62044191]
[1763438893246,18.12096,134.18,134.09,21.17970163]
[1763438893449,8.96044191,134.14,134.11,0.66]
[1763438893638,8.96044191,134.13,134.11,0.66]
[1763438894071,18.12096,134.18,134.11,0.66]
[1763438894234,0.43,134.21,134.11,0.66]
[1763438894438,8.96044191,134.17,134.12,8.96044191]
[1763438894640,8.96044191,134.16,134.13,0.66]
[1763438894841,0.43,134.23,134.13,9.62044191]
[1763438895049,8.96044191,134.2,134.15,8.96044191]
[1763438895264,8.96044191,134.2,134.16,8.96044191]
[1763438895781,18.12096,134.22,134.17,0.66]
[1763438895973,8.96044191,134.19,134.17,0.66]
[1763438896342,8.96044191,134.2,134.17,0.66]
[1763438896575,8.96044191,134.21,134.17,0.66]
[1763438896782,8.96044191,134.24,134.2,8.96044191]
[1763438896986,8.96044191,134.26,134.21,8.96044191]
[1763438897195,8.96044191,134.26,134.22,9.62044191]
[1763438897378,8.96044191,134.27,134.22,9.62044191]
[1763438897582,8.96044191,134.26,134.23,0.66]
[1763438898188,8.96044191,134.25,134.23,0.66]
[1763438898688,8.96044191,134.24,134.2,12.21925972]
[1763438898885,8.96044191,134.21,134.18,12.89925972]
[1763438899185,8.96044191,134.2,134.16,12.89925972]
[1763438899361,8.96044191,134.2,134.17,0.68]
[1763438900985,8.96044191,134.22,134.17,9.64044191]
[1763438901193,8.96044191,134.2,134.17,0.68]
[1763438901370,8.96044191,134.21,134.18,0.68]
[1763438901964,8.96044191,134.2,134.18,0.68]
[1763438902391,8.96044191,134.2,134.15,12.89925972]
[1763438902709,8.96044191,134.19,134.16,0.68]
[1763438902868,28.33978769,134.24,134.16,0.68]
[1763438903190,8.96044191,134.18,134.16,0.68]
[1763438903664,8.96044191,134.18,134.15,12.21925972]
[1763438903866,8.96044191,134.17,134.16,8.23403156]
[1763438904084,8.96044191,134.17,134.15,8.23403156]
[1763438904426,0.43,134.2,134.16,8.23403156]
[1763438905482,8.96044191,134.17,134.16,8.23403156]
[1763438905867,8.96044191,134.17,134.15,12.21925972]
[1763438906083,8.96044191,134.16,134.15,8.23067731]
[1763438906477,8.96044191,134.16,134.15,8.91067731]
[1763438906873,8.96044191,134.16,134.15,8.23067731]
[1763438907675,8.96044191,134.16,134.14,8.23067731]
[1763438907892,8.96044191,134.15,134.14,8.23067731]
[1763438908088,8.96044191,134.15,134.12,8.23067731]
[1763438908295,8.96044191,134.13,134.11,8.23067731]
[1763438908482,18.12096,134.16,134.1,8.23067731]
[1763438908795,8.96044191,134.11,134.09,8.23067731]
[1763438908997,8.96044191,134.1,134.09,8.23067731]
[1763438909393,8.96044191,134.1,134.09,8.91067731]
[1763438910001,8.96044191,134.1,134.09,8.23067731]
[1763438910176,8.96044191,134.1,134.08,8.23067731]
[1763438910371,8.96044191,134.09,134.08,8.23067731]
[1763438910772,8.96044191,134.09,134.08,8.91067731]
[1763438910972,8.96044191,134.09,134.08,8.23067731]
[1763438911188,8.96044191,134.09,134.07,8.23067731]
[1763438911394,8.96044191,134.08,134.07,8.23067731]
[1763438912115,18.12096,134.13,134.07,8.91067731]
[1763438912396,8.96044191,134.11,134.1,8.23067731]
[1763438912600,10.16433972,134.21,134.08,21.85970163]
[1763438912895,8.96044191,134.19,134.12,8.24789596]
[1763438913099,18.12096,134.16,134.12,8.24789596]
[1763438913274,9.78882769,134.18,134.11,8.24789596]
[1763438913474,18.12096,134.15,134.09,8.24789596]
[1763438914208,8.96044191,134.1,134.08,8.92789596]
[1763438914389,8.96044191,134.09,134.08,8.92789596]
[1763438914588,8.96044191,134.09,134.08,0.68]
[1763438914791,8.96044191,134.09,134.08,8.92789596]
[1763438915319,8.96044191,134.09,134.08,0.68]
[1763438916091,18.12096,134.15,134.08,0.68]
[1763438916394,8.96044191,134.09,134.08,12.89925972]
[1763438916793,8.96044191,134.09,134.08,0.68]
[1763438917000,9.78882769,134.18,134.08,0.68]
[1763438917200,9.78882769,134.18,134.13,8.25411019]
[1763438917402,18.12096,134.15,134.13,8.25411019]
[1763438918205,18.12096,134.15,134.12,8.25411019]
[1763438918406,8.96044191,134.13,134.12,8.25411019]
[1763438919306,8.96044191,134.13,134.11,12.38078058]
[1763438919504,8.96044191,134.12,134.11,13.06078058]
[1763438919697,102.7,134.17,134.11,13.04317103]
[1763438919888,8.96044191,134.13,134.11,13.04317103]
[1763438920095,8.96044191,134.12,134.11,13.04317103]
[1763438920300,8.96044191,134.12,134.1,12.36317103]
[1763438920607,102.7,134.17,134.08,0.68]
[1763438920608,8.96044191,134.11,134.08,0.68]
[1763438920910,8.96044191,134.12,134.08,0.68]
[1763438921108,8.96044191,134.11,134.1,12.36687087]
[1763438921312,8.96044191,134.11,134.08,0.68]
[1763438921608,8.96044191,134.12,134.08,0.68]
[1763438921808,8.96044191,134.12,134.11,12.3650987]
[1763438922893,8.96044191,134.12,134.1,8.24583235]
[1763438923106,8.96044191,134.11,134.1,8.24583235]
[1763438923491,8.96044191,134.11,134.09,12.3650987]
[1763438923794,8.96044191,134.11,134.09,13.0850987]
[1763438924002,8.96044191,134.11,134.06,9.06044191]
[1763438924003,8.96044191,134.11,134.1,13.0850987]
[1763438924514,18.12096,134.14,134.1,13.0850987]
[1763438924720,18.12096,134.14,134.12,8.24972468]
[1763438925290,18.12096,134.14,134.13,8.24972468]
[1763438925797,27.08140191,134.14,134.13,8.24972468]
[1763438926691,27.08140191,134.14,134.12,12.3650987]
[1763438926891,8.96044191,134.13,134.12,12.3650987]
[1763438930704,18.12096,134.16,134.11,12.3650987]
[1763438930912,18.12096,134.14,134.12,12.3650987]
[1763438931121,8.96044191,134.13,134.12,12.3650987]
[1763438932308,111.66044191,134.13,134.11,12.3650987]
[1763438932508,8.96044191,134.12,134.11,12.3650987]
[1763438932721,8.96044191,134.12,134.1,12.3650987]
[1763438932905,102.7,134.13,134.1,12.3650987]
[1763438932906,8.96044191,134.11,134.1,12.3650987]
[1763438934240,8.96044191,134.11,134.09,12.3650987]
[1763438934437,8.96044191,134.11,134.1,12.3650987]
[1763438934825,5.72252455,134.11,134.09,12.3650987]
[1763438935141,5.72252455,134.1,134.09,12.3650987]
[1763438935442,5.72252455,134.1,134.09,13.0850987]
[1763438935944,5.72252455,134.1,134.09,0.72]
[1763438936146,5.72252455,134.1,134.09,13.13199254]
[1763438936536,5.72252455,134.1,134.09,0.72]
[1763438936735,5.72252455,134.1,134.07,0.72]
[1763438937049,5.72252455,134.09,134.07,0.72]
[1763438937518,102.7,134.21,134.08,50.00265308]
[1763438937719,5.72252455,134.17,134.16,8.25881478]
[1763438938144,5.72252455,134.17,134.15,12.38578531]
[1763438938446,5.72252455,134.17,134.15,13.10578531]
[1763438940242,2.0,134.35,134.18,18.12096]
[1763438940421,5.72252455,134.32,134.24,8.25113402]
[1763438940753,5.72252455,134.25,134.23,8.24340129]
[1763438940953,18.12096,134.27,134.24,8.24340129]
[1763438941246,7.72252455,134.32,134.24,8.24340129]
[1763438941450,2.0,134.3,134.23,8.24340129]
[1763438941653,9.78882769,134.24,134.21,8.24340129]
[1763438941855,9.78882769,134.24,134.2,8.24340129]
[1763438942028,5.72252455,134.21,134.2,8.24340129]
[1763438942236,5.72252455,134.21,134.19,8.24340129]
[1763438942450,5.72252455,134.2,134.19,8.24340129]
[1763438943231,5.72252455,134.2,134.18,8.24340129]
[1763438943550,18.12096,134.18,134.16,8.24340129]
[1763438943855,5.72252455,134.17,134.16,8.24340129]
[1763438944052,5.72252455,134.17,134.15,8.24340129]
[1763438944247,9.78882769,134.25,134.16,12.37670104]
[1763438944435,5.72252455,134.18,134.16,0.72]
[1763438945034,18.12096,134.21,134.17,12.40497486]
[1763438945241,27.90978769,134.2,134.18,8.27203895]
[1763438945440,5.72252455,134.19,134.18,8.27203895]
[1763438945642,5.72252455,134.19,134.17,8.27203895]
[1763438945856,18.12096,134.17,134.16,8.27203895]
[1763438946061,39.35483679,134.17,134.16,8.27203895]
[1763438946244,39.35483679,134.17,134.15,8.27203895]
[1763438946438,11.4450491,134.16,134.14,8.27203895]
[1763438946744,23.84348455,134.15,134.14,8.27203895]
[1763438946948,5.72252455,134.15,134.14,8.27203895]
[1763438947533,5.72252455,134.15,134.12,12.40497486]
[1763438947534,18.12096,134.13,134.12,12.40497486]
[1763438947869,23.84348455,134.13,134.12,8.28816502]
[1763438948035,33.63231224,134.13,134.11,8.28816502]
[1763438948365,5.72252455,134.12,134.11,8.28816502]
[1763438949253,5.72252455,134.12,134.1,8.28816502]
[1763438950055,5.72252455,134.11,134.1,8.28816502]
[1763438950256,18.12096,134.08,134.06,0.1]
[1763438950577,18.12096,134.04,134.01,0.82]
[1763438950883,5.72252455,134.02,134.01,0.1]
[1763438951683,18.12096,133.99,133.98,0.1]
[1763438951847,23.84348455,133.99,133.98,0.1]
[1763438952265,18.12096,133.99,133.98,0.1]
[1763438952461,33.63231224,133.99,133.98,0.1]
[1763438952758,23.84348455,133.99,133.98,0.1]
[1763438953248,23.84348455,133.99,133.98,0.78]
[1763438953249,18.12096,133.99,133.98,0.78]
[1763438953560,5.72252455,134.02,133.98,0.78]
[1763438953878,9.78882769,134.07,133.98,0.78]
[1763438953879,5.72252455,134.01,133.98,0.78]
[1763438954176,9.78882769,134.07,133.98,0.78]
[1763438954358,5.72252455,133.99,133.98,0.78]
[1763438954555,18.12096,134.04,133.98,0.78]
[1763438954556,5.72252455,134.01,133.98,0.78]
[1763438955366,5.72252455,134.0,133.98,0.78]
[1763438955552,18.12096,134.04,133.98,0.78]
[1763438956473,5.72252455,134.01,133.98,0.78]
[1763438957049,5.72252455,134.02,133.98,0.78]
[1763438957271,5.72252455,134.03,133.98,0.78]
[1763438957462,5.72252455,134.02,133.98,0.78]
[1763438957661,5.72252455,134.01,133.98,0.78]
[1763438958375,5.72252455,134.0,133.98,0.78]
[1763438959857,5.72252455,133.99,133.98,0.1]
[1763438960064,5.72252455,134.0,133.98,0.78]
[1763438960418,13.83053396,134.08,133.98,0.78]
[1763438960419,11.83053396,134.08,133.98,0.78]
[1763438960556,5.72252455,134.05,133.99,5.72252455]
[1763438960756,5.72252455,134.08,134.02,5.72252455]
[1763438960978,23.84348455,134.08,134.02,18.12749941]
[1763438961164,18.12096,134.08,134.03,0.68]
[1763438961362,5.72252455,134.08,134.03,0.68]
[1763438961567,5.72252455,134.07,134.03,0.68]
[1763438961881,5.72252455,134.08,134.03,0.68]
[1763438962376,5.72252455,134.09,134.04,12.40497486]
[1763438962581,5.90925815,134.15,134.06,18.12749941]
[1763438962894,7.72252455,134.24,134.08,18.12749941]
[1763438963055,5.72252455,134.14,134.09,12.40497486]
[1763438963255,5.72252455,134.14,134.09,13.08497486]
[1763438963452,5.72252455,134.14,134.08,5.72252455]
[1763438963453,18.12096,134.15,134.1,0.68]
[1763438963657,5.72252455,134.12,134.1,0.68]
[1763438964069,5.72252455,134.11,134.07,0.68]
[1763438964306,5.72252455,134.09,134.07,0.68]
[1763438964790,18.12096,134.12,134.07,0.68]
[1763438964791,5.72252455,134.1,134.07,0.68]
[1763438965732,5.72252455,134.12,134.07,0.68]
[1763438965898,18.12096,134.13,134.07,18.80749941]
[1763438966094,23.84348455,134.13,134.08,12.40497486]
[1763438966294,23.84348455,134.13,134.08,13.08497486]
[1763438966506,23.84348455,134.13,134.09,0.68]
[1763438966717,18.12096,134.13,134.09,0.68]
[1763438966913,23.84348455,134.13,134.09,0.68]
[1763438967311,5.72252455,134.12,134.09,0.68]
[1763438967494,18.12096,134.13,134.09,0.68]
[1763438967694,5.72252455,134.1,134.07,12.40497486]
[1763438967943,5.72252455,134.1,134.08,0.68]
[1763438968503,2.0,134.2,134.08,0.68]
[1763438968816,5.72252455,134.15,134.09,18.12749941]
[1763438969022,5.72252455,134.15,134.1,0.68]
[1763438969241,5.72252455,134.18,134.11,5.72252455]
[1763438969513,23.84348455,134.19,134.13,5.72252455]
[1763438969724,23.84348455,134.19,134.14,0.68]
[1763438969893,5.72252455,134.18,134.14,0.68]
[1763438970093,5.92252455,134.24,134.14,0.68]
[1763438970315,5.72252455,134.18,134.14,0.68]
[1763438970618,9.78882769,134.23,134.14,0.68]
[1763438970822,5.72252455,134.18,134.14,0.68]
[1763438971022,18.12096,134.19,134.14,0.68]
[1763438971202,18.12096,134.2,134.14,0.68]
[1763438971407,5.72252455,134.18,134.14,0.68]
[1763438971838,18.12096,134.2,134.14,0.68]
[1763438972025,5.72252455,134.21,134.15,5.72252455]
[1763438972224,5.72252455,134.19,134.14,13.08497486]
[1763438972529,5.72252455,134.17,134.14,0.68]
[1763438972727,5.72252455,134.18,134.15,0.68]
[1763438972934,5.72252455,134.21,134.15,6.40252455]
[1763438973108,5.72252455,134.21,134.15,18.80749941]
[1763438973308,5.72252455,134.19,134.16,0.68]
[1763438973842,5.72252455,134.2,134.16,0.68]
[1763438974130,5.72252455,134.21,134.16,0.68]
[1763438974632,5.72252455,134.2,134.16,0.68]
[1763438975047,5.72252455,134.19,134.16,0.68]
[1763438975410,18.12096,134.2,134.16,0.68]
[1763438975617,5.72252455,134.19,134.16,0.68]
[1763438975821,18.12096,134.2,134.16,0.68]
[1763438976017,5.72252455,134.2,134.16,0.68]
[1763438976223,5.72252455,134.19,134.16,0.68]
[1763438977342,5.72252455,134.18,134.16,0.68]
[1763438977559,102.7,134.17,134.16,0.68]
[1763438977715,108.42252455,134.17,134.16,0.68]
[1763438978025,102.7,134.17,134.16,0.68]
[1763438980448,0.2,134.24,134.16,6.40252455]
[1763438980748,5.72252455,134.21,134.16,8.8569365]
[1763438980924,5.72252455,134.21,134.17,0.68]
[1763438981125,5.72252455,134.2,134.17,0.68]
[1763438982153,5.72252455,134.22,134.17,0.68]
[1763438982439,23.84348455,134.23,134.17,14.57946105]
[1763438982665,0.2,134.24,134.19,5.72252455]
[1763438982966,5.72252455,134.28,134.23,5.72252455]
[1763438983153,5.72252455,134.28,134.24,0.68]
[1763438983845,27.90978769,134.31,134.24,0.68]
[1763438983846,5.72252455,134.26,134.24,0.68]
[1763438984421,5.72252455,134.26,134.19,8.1769365]
[1763438984624,5.72252455,134.25,134.22,0.68]
[1763438984829,9.78882769,134.27,134.22,0.68]
[1763438984830,5.72252455,134.24,134.22,0.68]
[1763438985241,5.72252455,134.25,134.22,0.68]
[1763438985648,5.72252455,134.24,134.22,0.68]
[1763438985853,5.72252455,134.25,134.22,0.68]
[1763438986229,5.72252455,134.28,134.22,6.40252455]
[1763438986437,9.78882769,134.31,134.22,6.40252455]
[1763438986748,5.72252455,134.28,134.23,0.68]
[1763438987272,5.72252455,134.3,134.24,5.72252455]
[1763438987564,5.72252455,134.3,134.23,8.8569365]
[1763438987565,18.12096,134.3,134.25,0.68]
[1763438987747,5.72252455,134.29,134.25,0.68]
[1763438989162,5.72252455,134.28,134.26,0.68]
[1763438989532,23.84348455,134.32,134.26,0.68]
[1763438989533,5.72252455,134.29,134.26,0.68]
[1763438989728,18.12096,134.3,134.26,0.68]
[1763438989928,5.72252455,134.29,134.26,0.68]
[1763438990157,5.72252455,134.27,134.23,0.68]
[1763438990365,5.72252455,134.27,134.24,0.68]
[1763438990546,5.72252455,134.28,134.24,0.68]
[1763438991427,5.72252455,134.29,134.24,0.68]
[1763438991671,5.72252455,134.28,134.24,0.68]
[1763438991958,5.72252455,134.28,134.22,5.72252455]
[1763438991959,5.72252455,134.26,134.22,0.68]
[1763438992161,5.72252455,134.26,134.23,0.68]
[1763438994150,5.72252455,134.25,134.21,0.68]
[1763438994358,5.72252455,134.23,134.21,0.68]
[1763438994536,5.72252455,134.23,134.2,0.68]
[1763438994732,0.2,134.27,134.2,0.68]
[1763438994938,5.72252455,134.24,134.2,0.68]
[1763438995163,18.12096,134.26,134.2,0.68]
[1763438995339,5.72252455,134.24,134.2,0.68]
[1763438995859,5.72252455,134.23,134.2,0.68]
[1763438996255,18.12096,134.24,134.2,0.68]
[1763438996256,5.72252455,134.22,134.2,0.68]
[1763438996558,0.2,134.24,134.15,21.85474438]
[1763438996759,5.72252455,134.2,134.18,0.68]
[1763438996944,8.95275977,134.2,134.18,0.68]
[1763438997560,8.95275977,134.19,134.16,0.68]
[1763438997745,8.95275977,134.18,134.16,0.68]
[1763438998769,8.95275977,134.2,134.16,0.68]
[1763438999254,8.95275977,134.19,134.16,0.68]
[1763439000459,8.95275977,134.2,134.16,0.68]
[1763439000767,8.95275977,134.17,134.13,0.68]
[1763439000938,8.95275977,134.17,134.14,0.68]
[1763439001291,8.95275977,134.15,134.1,0.68]
[1763439001470,8.95275977,134.11,134.08,0.68]
[1763439001778,8.95275977,134.12,134.09,0.68]
[1763439002151,8.95275977,134.11,134.09,0.68]
[1763439002345,8.95275977,134.12,134.09,0.68]
[1763439002785,9.98882769,134.16,134.09,0.68]
[1763439002995,8.95275977,134.13,134.09,0.68]
[1763439003187,8.95275977,134.12,134.09,0.68]
[1763439003895,8.95275977,134.1,134.06,8.1769365]
[1763439004054,0.2,134.11,134.05,8.1769365]
[1763439004055,8.95275977,134.07,134.05,8.1769365]
[1763439004264,8.95275977,134.06,134.04,0.68]
[1763439004465,8.95275977,134.05,134.03,8.1769365]
[1763439004718,8.95275977,134.04,134.01,8.1769365]
[1763439004989,0.2,134.09,133.98,0.1]
[1763439004990,8.95275977,134.02,133.98,8.9569365]
[1763439005181,8.95275977,134.01,133.98,8.9569365]
[1763439005388,8.95275977,134.0,133.98,0.78]
[1763439005601,8.95275977,134.01,133.98,0.1]
[1763439005908,8.95275977,133.99,133.98,0.1]
[1763439006769,9.15275977,133.99,133.98,0.1]
[1763439007083,18.94158746,133.99,133.98,0.1]
[1763439007489,18.74158746,133.99,133.98,0.1]
[1763439007684,43.9849239,134.08,133.98,0.1]
[1763439007685,0.2,134.02,133.98,0.1]
[1763439007885,8.95275977,133.99,133.98,0.1]
[1763439008096,2.0,134.06,133.98,0.78]
[1763439008097,0.2,134.06,133.98,0.78]
[1763439008290,8.95275977,134.01,133.98,0.78]
[1763439008597,18.12096,134.04,133.98,0.78]
[1763439008771,8.95275977,134.02,133.98,0.78]
[1763439009172,8.95275977,134.01,133.98,0.78]
[1763439009792,8.95275977,134.02,133.98,0.78]
[1763439010099,18.32096,134.03,133.98,0.1]
[1763439010303,8.95275977,133.99,133.98,0.1]
[1763439010699,8.95275977,133.99,133.98,0.78]
[1763439010904,8.95275977,134.01,133.98,0.78]
[1763439012200,8.95275977,134.0,133.99,0.68]
[1763439012405,8.95275977,134.01,133.99,0.68]
[1763439012599,8.95275977,134.0,133.98,0.1]
[1763439012799,19.08767581,134.12,133.98,0.78]
[1763439013028,8.95275977,134.07,134.02,8.95275977]
[1763439013189,8.95275977,134.08,134.03,9.63275977]
[1763439013523,8.95275977,134.07,134.03,0.68]
[1763439013713,8.95275977,134.07,134.04,0.68]
[1763439013918,8.95275977,134.08,134.04,0.68]
[1763439014099,14.85990153,134.19,134.04,0.68]
[1763439014299,9.98882769,134.17,134.05,8.95275977]
[1763439014513,8.95275977,134.12,134.06,0.68]
[1763439014696,8.95275977,134.09,134.06,0.68]
[1763439014898,27.90978769,134.13,134.06,0.68]
[1763439015219,8.95275977,134.09,134.06,0.68]
[1763439015419,8.95275977,134.07,134.02,0.68]
[1763439015598,8.95275977,134.07,133.98,39.57869463]
[1763439015599,8.95275977,134.03,133.99,0.68]
[1763439015801,8.95275977,134.02,133.99,0.68]
[1763439016122,8.95275977,134.02,133.98,0.1]
[1763439016123,8.95275977,134.0,133.98,0.1]
[1763439016305,18.12096,134.03,133.98,0.78]
[1763439016497,8.95275977,134.01,133.98,0.78]
[1763439016695,8.95275977,134.02,133.98,0.78]
[1763439017212,8.95275977,134.01,133.98,0.78]
[1763439017422,27.90978769,134.06,133.98,0.78]
[1763439017601,8.95275977,134.04,133.98,9.73275977]
[1763439017795,8.95275977,134.03,133.99,0.68]
[1763439019020,8.95275977,134.01,133.98,0.1]
[1763439019226,8.95275977,134.01,133.98,0.79]
[1763439019399,8.95275977,134.0,133.98,0.79]
[1763439019595,18.12096,134.03,133.98,0.79]
[1763439019795,8.95275977,134.02,133.98,0.79]
[1763439020123,8.95275977,134.03,133.98,0.79]
[1763439020524,8.95275977,134.04,133.98,9.74275977]
[1763439020824,8.95275977,134.03,133.98,0.79]
[1763439021040,8.95275977,134.03,133.99,0.69]
[1763439021821,8.95275977,134.02,133.99,0.69]
[1763439022226,9.78882769,134.06,133.99,0.69]
[1763439022227,8.95275977,134.03,133.99,0.69]
[1763439022727,9.98882769,134.09,133.99,0.69]
[1763439022909,8.95275977,134.04,133.99,0.69]
[1763439023925,8.95275977,134.03,133.99,0.69]
[1763439024525,8.95275977,134.02,133.99,0.69]
[1763439024829,8.95275977,134.02,133.98,0.1]
[1763439024830,18.32096,134.06,133.98,8.95275977]
[1763439025036,8.95275977,134.04,133.98,8.95275977]
[1763439025754,8.95275977,134.05,133.99,8.95275977]
[1763439025909,18.12096,134.06,134.0,8.95275977]
[1763439026245,18.12096,134.06,133.97,1.72593088]
[1763439026246,8.95275977,134.04,133.99,8.95275977]
[1763439026543,18.12096,134.06,133.99,8.95275977]
[1763439026708,8.95275977,134.05,134.0,0.69]
[1763439027535,8.95275977,134.03,134.0,0.69]
[1763439028337,8.95275977,134.04,134.0,0.69]
[1763439028726,18.12096,134.06,134.0,0.69]
[1763439028925,8.95275977,134.04,134.0,0.69]
[1763439029107,18.12096,134.06,133.98,8.95275977]
[1763439029108,8.95275977,134.03,133.98,0.69]
[1763439029308,8.95275977,134.03,133.99,0.69]
[1763439030231,8.95275977,134.04,133.99,0.69]
[1763439030536,102.7,134.03,133.99,0.69]
[1763439030740,0.71,134.08,133.99,9.64275977]
[1763439030918,8.95275977,134.05,133.99,9.64275977]
[1763439031119,8.95275977,134.05,134.0,0.69]
[1763439031630,8.95275977,134.04,134.0,0.69]
[1763439032819,8.95275977,134.05,134.0,0.69]
[1763439033206,8.95275977,134.04,134.0,0.69]
[1763439035032,18.12096,134.06,134.0,0.69]
[1763439035231,8.95275977,134.05,134.0,0.69]
[1763439037434,0.71,134.11,134.03,8.95275977]
[1763439037762,0.71,134.17,134.08,8.95275977]
[1763439038077,0.71,134.17,134.1,8.95275977]
[1763439038351,8.95275977,134.16,134.11,0.69]
[1763439038729,8.95275977,134.19,134.13,8.95275977]
[1763439038930,8.95275977,134.19,134.14,0.69]
[1763439039124,8.95275977,134.19,134.14,8.8669365]
[1763439039741,10.49882769,134.21,134.14,0.69]
[1763439039965,10.49882769,134.21,134.13,17.12969627]
[1763439039966,8.95275977,134.17,134.13,8.8669365]
[1763439040138,9.78882769,134.19,134.12,8.1769365]
[1763439040468,8.95275977,134.17,134.12,8.8669365]
[1763439040851,8.95275977,134.15,134.1,8.8669365]
[1763439041049,8.95275977,134.15,134.11,0.69]
[1763439041251,8.95275977,134.15,134.11,8.8669365]
[1763439041942,8.95275977,134.14,134.11,0.69]
[1763439042147,8.95275977,134.15,134.11,8.8669365]
[1763439042342,8.95275977,134.15,134.11,0.69]
[1763439042547,8.95275977,134.15,134.11,8.8669365]
[1763439042945,8.95275977,134.17,134.14,8.1769365]
[1763439043346,8.95275977,134.18,134.14,8.8769365]
[1763439043571,0.7,134.2,134.14,8.8769365]
[1763439043754,111.65275977,134.19,134.15,8.1769365]
[1763439043945,8.95275977,134.19,134.15,8.8769365]
[1763439044144,8.95275977,134.19,134.16,8.8769365]
[1763439044346,8.95275977,134.18,134.15,8.1769365]
[1763439044586,8.95275977,134.17,134.14,8.1769365]
[1763439044744,8.95275977,134.16,134.14,8.1769365]
[1763439044941,8.95275977,134.16,134.12,26.2978965]
[1763439045137,8.95275977,134.16,134.12,8.8769365]
[1763439045352,0.7,134.17,134.12,8.1769365]
[1763439045544,8.95275977,134.16,134.13,8.1769365]